[Event "NJSK 2024 B"]
[Site "Groningen, Netherlands"]
[Date "2024.04.28"]
[Round "2.7"]
[White "Krylov, Philippe"]
[Black "Heus, Daan"]
[Result "1-0"]
[TimeControl "90min/40moves + 30min + 30sec/move"]
[WhiteElo "2007"]
[BlackElo "1921"]

1. d4 {[%clk 01:30:51]} {[%emt 00:00:08]} d5 {[%clk 01:30:54]} {[%emt
00:00:06]} 2. c4 {[%clk 01:31:13]} {[%emt 00:00:08]} e6 {[%clk 01:31:20]}
{[%emt 00:00:04]} 3. Nc3 {[%clk 01:31:36]} {[%emt 00:00:07]} Nf6 {[%clk
01:31:42]} {[%emt 00:00:09]} 4. cxd5 {[%clk 01:31:16]} {[%emt 00:00:50]} exd5
{[%clk 01:32:05]} {[%emt 00:00:07]} 5. Bg5 {[%clk 01:31:41]} {[%emt 00:00:05]}
Be7 {[%clk 01:32:29]} {[%emt 00:00:07]} 6. e3 {[%clk 01:32:06]} {[%emt
00:00:04]} c6 {[%clk 01:32:42]} {[%emt 00:00:17]} 7. Bd3 {[%clk 01:32:23]}
{[%emt 00:00:13]} O-O {[%clk 01:33:05]} {[%emt 00:00:07]} 8. Nge2 {[%clk
01:29:29]} {[%emt 00:03:25]} Nbd7 {[%clk 01:33:12]} {[%emt 00:00:22]} 9. O-O
{[%clk 01:29:17]} {[%emt 00:00:42]} Re8 {[%clk 01:33:01]} {[%emt 00:00:42]} 10.
f3 {[%clk 01:21:24]} {[%emt 00:08:23]} Nf8 {[%clk 01:32:51]} {[%emt 00:00:39]}
11. Kh1 {[%clk 01:19:01]} {[%emt 00:02:54]} Ne6 {[%clk 01:30:35]} {[%emt
00:02:46]} 12. Bh4 {[%clk 01:19:18]} {[%emt 00:00:14]} g6 {[%clk 01:29:03]}
{[%emt 00:02:00]} 13. h3 {[%clk 01:01:07]} {[%emt 00:18:41]} Ng7 {[%clk
01:25:58]} {[%emt 00:03:35]} 14. e4 {[%clk 00:59:18]} {[%emt 00:02:20]} Nxe4
{[%clk 01:20:08]} {[%emt 00:06:19]} 15. fxe4 {[%clk 00:54:10]} {[%emt
00:05:39]} Bxh4 {[%clk 01:19:53]} {[%emt 00:00:44]} 16. exd5 {[%clk 00:53:40]}
{[%emt 00:01:01]} cxd5 {[%clk 01:19:22]} {[%emt 00:01:01]} 17. Nf4 {[%clk
00:51:33]} {[%emt 00:02:37]} Be6 {[%clk 01:01:40]} {[%emt 00:18:12]} 18. Qf3
{[%clk 00:48:20]} {[%emt 00:03:43]} Re7 {[%clk 01:00:00]} {[%emt 00:02:09]} 19.
Ncxd5 {[%clk 00:36:18]} {[%emt 00:12:33]} Bxd5 {[%clk 00:58:51]} {[%emt
00:01:39]} 20. Nxd5 {[%clk 00:34:06]} {[%emt 00:02:43]} Rd7 {[%clk 00:58:31]}
{[%emt 00:00:49]} 21. g3 {[%clk 00:13:38]} {[%emt 00:20:58]} Rxd5 {[%clk
00:55:13]} {[%emt 00:03:48]} 22. Qxf7+ {[%clk 00:14:06]} {[%emt 00:00:02]} Kh8
{[%clk 00:55:27]} {[%emt 00:00:16]} 23. gxh4 {[%clk 00:14:23]} {[%emt
00:00:13]} Rxd4 {[%clk 00:53:04]} {[%emt 00:02:54]} 24. Bc2 {[%clk 00:11:12]}
{[%emt 00:03:41]} Rd7 {[%clk 00:46:11]} {[%emt 00:07:20]} 25. Qf3 {[%clk
00:09:39]} {[%emt 00:02:03]} Nh5 {[%clk 00:43:15]} {[%emt 00:03:27]} 26. Qc3+
{[%clk 00:08:45]} {[%emt 00:01:24]} Rg7 {[%clk 00:42:35]} {[%emt 00:01:10]} 27.
Rad1 {[%clk 00:06:59]} {[%emt 00:02:16]} Qxh4 {[%clk 00:42:03]} {[%emt
00:01:02]} 28. Rd4 {[%clk 00:06:30]} {[%emt 00:00:59]} Qg5 {[%clk 00:39:07]}
{[%emt 00:03:26]} 29. Rg4 {[%clk 00:05:47]} {[%emt 00:01:13]} Qd5+ {[%clk
00:35:41]} {[%emt 00:03:56]} 30. Be4 {[%clk 00:06:16]} {[%emt 00:00:02]} Qe6
{[%clk 00:33:43]} {[%emt 00:02:27]} 31. Bxb7 {[%clk 00:05:26]} {[%emt
00:01:20]} Rd8 {[%clk 00:31:12]} {[%emt 00:03:01]} 32. Re4 {[%clk 00:03:49]}
{[%emt 00:02:07]} Qd6 {[%clk 00:28:43]} {[%emt 00:02:59]} 33. Re3 {[%clk
00:03:52]} {[%emt 00:00:27]} Rf8 {[%clk 00:21:28]} {[%emt 00:07:45]} 34. Rxf8+
{[%clk 00:03:21]} {[%emt 00:01:01]} Qxf8 {[%clk 00:21:56]} {[%emt 00:00:02]} 35.
Rf3 {[%clk 00:02:19]} {[%emt 00:01:32]} Qd8 {[%clk 00:19:20]} {[%emt 00:03:05]}
36. Rd3 {[%clk 00:01:22]} {[%emt 00:01:28]} Qh4 {[%clk 00:18:28]} {[%emt
00:01:22]} 37. Bd5 {[%clk 00:00:43]} {[%emt 00:01:09]} h6 {[%clk 00:17:36]}
{[%emt 00:01:23]} 38. Bg2 {[%clk 00:00:34]} {[%emt 00:00:39]} Nf4 {[%emt
00:01:36]} 39. Rd7 {[%clk 00:00:43]} Nh5 {[%clk 00:16:17]} {[%emt 00:01:02]} 40.
Rxa7 {[%clk 00:00:54]} {[%emt 00:00:19]} Ng3+ {[%clk 00:16:27]} {[%emt
00:00:20]} 41. Kh2 {[%clk 00:01:09]} {[%emt 00:00:15]} Nf5 {[%clk 00:15:50]}
{[%emt 00:01:07]} 42. Rxg7 {[%clk 00:30:00]} Qf4+ {[%clk 00:45:29]} {[%emt
00:04:53]} 43. Kg1 {[%clk 00:27:12]} {[%emt 00:00:54]} Nxg7 {[%clk 00:45:47]}
{[%emt 00:00:12]} 44. b3 {[%clk 00:26:51]} {[%emt 00:00:52]} Kh7 {[%clk
00:44:24]} {[%emt 00:02:31]} 45. a4 {[%clk 00:24:25]} {[%emt 00:03:26]} Nf5
{[%clk 00:44:15]} {[%emt 00:00:39]} 46. a5 {[%clk 00:20:07]} {[%emt 00:04:47]}
Ne3 {[%clk 00:41:50]} {[%emt 00:02:55]} 47. Qe1 {[%clk 00:14:29]} {[%emt
00:06:04]} Nxg2 {[%clk 00:40:57]} {[%emt 00:01:27]} 48. Qe7+ {[%clk 00:13:14]}
{[%emt 00:01:46]} Kg8 {[%clk 00:40:49]} {[%emt 00:00:37]} 49. Qd8+ {[%clk
00:13:02]} {[%emt 00:00:41]} Kf7 {[%clk 00:40:53]} {[%emt 00:00:24]} 50. Qd7+
{[%clk 00:13:21]} {[%emt 00:00:13]} Kf8 {[%clk 00:40:37]} {[%emt 00:00:47]} 51.
Qc8+ {[%clk 00:13:18]} {[%emt 00:00:33]} Kf7 {[%clk 00:40:06]} {[%emt
00:01:00]} 52. Qb7+ {[%clk 00:13:42]} {[%emt 00:00:06]} Ke8 {[%clk 00:40:00]}
{[%emt 00:00:35]} 53. Qb5+ {[%clk 00:13:56]} {[%emt 00:00:18]} Ke7 {[%clk
00:39:37]} {[%emt 00:00:52]} 54. Qc5+ {[%clk 00:12:52]} {[%emt 00:01:36]} Kd8
{[%clk 00:38:20]} {[%emt 00:01:46]} 55. Qd5+ {[%clk 00:13:07]} {[%emt
00:00:15]} Ke7 {[%clk 00:37:55]} {[%emt 00:00:55]} 56. Kxg2 {[%clk 00:13:24]}
{[%emt 00:00:14]} Qe3 {[%clk 00:37:26]} {[%emt 00:00:58]} 57. Qb7+ {[%clk
00:12:32]} {[%emt 00:01:23]} Ke8 {[%clk 00:37:26]} {[%emt 00:00:27]} 58. Qc6+
{[%clk 00:12:42]} {[%emt 00:00:21]} Ke7 {[%clk 00:37:30]} {[%emt 00:00:26]} 59.
Qb7+ {[%clk 00:07:34]} {[%emt 00:05:39]} Ke8 {[%clk 00:37:38]} {[%emt
00:00:22]} 60. Qb5+ {[%clk 00:07:25]} {[%emt 00:00:39]} Ke7 {[%clk 00:37:51]}
{[%emt 00:00:17]} 61. a6 {[%clk 00:06:41]} {[%emt 00:01:15]} Qe4+ {[%clk
00:37:18]} {[%emt 00:01:02]} 62. Kf2 {[%clk 00:06:51]} {[%emt 00:00:20]} Qf4+
{[%clk 00:36:07]} {[%emt 00:01:40]} 63. Ke1 {[%clk 00:06:41]} {[%emt 00:00:39]}
Qc1+ {[%clk 00:34:55]} {[%emt 00:01:43]} 64. Kf2 {[%clk 00:06:54]} {[%emt
00:00:19]} Qf4+ {[%clk 00:35:14]} {[%emt 00:00:10]} 65. Ke2 {[%clk 00:06:53]}
{[%emt 00:00:26]} Qe4+ {[%clk 00:33:24]} {[%emt 00:02:25]} 66. Kd2 {[%clk
00:07:10]} {[%emt 00:00:13]} Qf4+ {[%clk 00:32:23]} {[%emt 00:01:31]} 67. Kc2
{[%clk 00:06:49]} {[%emt 00:00:49]} Qf2+ {[%clk 00:32:33]} {[%emt 00:00:21]} 68.
Kb1 {[%clk 00:06:26]} {[%emt 00:00:54]} Qe1+ {[%clk 00:32:42]} {[%emt
00:00:20]} 69. Kb2 {[%clk 00:05:51]} {[%emt 00:01:04]} Qd2+ {[%clk 00:32:56]}
{[%emt 00:00:19]} 70. Ka3 {[%clk 00:04:26]} {[%emt 00:01:56]} Qc1+ {[%clk
00:33:03]} {[%emt 00:00:22]} 71. Ka2 {[%clk 00:04:50]} {[%emt 00:00:06]} Qc2+
{[%clk 00:33:14]} {[%emt 00:00:19]} 72. Ka3 {[%clk 00:05:18]} {[%emt 00:00:02]}
Qc1+ {[%clk 00:33:32]} {[%emt 00:00:12]} 73. Ka4 {[%clk 00:03:53]} {[%emt
00:01:54]} Qa1+ {[%clk 00:33:46]} {[%emt 00:00:17]} 74. Kb4 {[%clk 00:04:20]}
{[%emt 00:00:03]} Qe1+ {[%clk 00:33:29]} {[%emt 00:00:47]} 75. Kc5 {[%clk
00:04:19]} {[%emt 00:00:31]} Qe3+ {[%clk 00:32:23]} {[%emt 00:01:36]} 76. Kc6
{[%clk 00:04:24]} {[%emt 00:00:24]} Qe6+ {[%clk 00:30:50]} {[%emt 00:02:03]} 77.
Kb7 {[%clk 00:04:16]} {[%emt 00:00:37]} Qe4+ {[%clk 00:31:03]} {[%emt
00:00:19]} 78. Qc6 {[%clk 00:04:06]} {[%emt 00:00:39]} Qb4+ {[%clk 00:30:52]}
{[%emt 00:00:42]} 79. Kc8 {[%clk 00:03:25]} {[%emt 00:01:11]} Qd2 {[%clk
00:29:50]} {[%emt 00:01:32]} 80. a7 {[%clk 00:02:32]} {[%emt 00:01:23]} 1-0

[Event "NJSK 2024 B"]
[Site "Groningen, Netherlands"]
[Date "2024.04.28"]
[Round "2.8"]
[White "Kshirsagar, Pranav"]
[Black "Lopes, Samuel"]
[Result "1-0"]
[TimeControl "90min/40moves + 30min + 30sec/move"]
[WhiteElo "1957"]
[BlackElo "1906"]

1. d4 {[%clk 01:30:58]} {[%emt 00:00:02]} e6 {[%clk 01:30:45]} {[%emt
00:00:15]} 2. c4 {[%clk 01:31:24]} {[%emt 00:00:05]} d5 {[%clk 01:31:04]}
{[%emt 00:00:11]} 3. Nf3 {[%clk 01:31:43]} {[%emt 00:00:10]} Nf6 {[%clk
01:31:22]} {[%emt 00:00:13]} 4. Nc3 {[%clk 01:32:00]} {[%emt 00:00:13]} a6
{[%clk 01:31:42]} {[%emt 00:00:10]} 5. e3 {[%clk 01:30:24]} {[%emt 00:02:06]}
b6 {[%clk 01:28:10]} {[%emt 00:04:01]} 6. Ne5 {[%clk 01:28:14]} {[%emt
00:02:41]} Bb7 {[%clk 01:24:37]} {[%emt 00:04:03]} 7. Qa4+ {[%clk 01:20:39]}
{[%emt 00:08:05]} Nbd7 {[%clk 01:17:36]} {[%emt 00:07:30]} 8. Nxd7 {[%clk
01:04:13]} {[%emt 00:16:56]} Nxd7 {[%clk 01:16:46]} {[%emt 00:01:21]} 9. cxd5
{[%clk 01:02:03]} {[%emt 00:02:39]} exd5 {[%clk 01:14:50]} {[%emt 00:02:27]} 10.
Be2 {[%clk 01:00:38]} {[%emt 00:01:56]} Bd6 {[%clk 01:10:37]} {[%emt 00:04:42]}
11. Bf3 {[%clk 00:58:43]} {[%emt 00:02:24]} b5 {[%clk 01:08:58]} {[%emt
00:02:10]} 12. Qc2 {[%clk 00:56:27]} {[%emt 00:02:47]} Nf6 {[%clk 01:06:52]}
{[%emt 00:02:35]} 13. O-O {[%clk 00:54:34]} {[%emt 00:02:23]} O-O {[%clk
01:07:09]} {[%emt 00:00:13]} 14. Bd2 {[%clk 00:47:34]} {[%emt 00:07:29]} Re8
{[%clk 01:04:47]} {[%emt 00:02:52]} 15. g3 {[%clk 00:46:08]} {[%emt 00:01:57]}
Ne4 {[%clk 01:03:32]} {[%emt 00:01:45]} 16. Nxe4 {[%clk 00:46:02]} {[%emt
00:00:37]} dxe4 {[%clk 01:03:47]} {[%emt 00:00:14]} 17. Bg2 {[%clk 00:46:24]}
{[%emt 00:00:07]} h5 {[%clk 01:02:13]} {[%emt 00:02:05]} 18. h4 {[%clk
00:43:32]} {[%emt 00:03:23]} g5 {[%clk 00:54:40]} {[%emt 00:08:02]} 19. Qd1
{[%clk 00:42:03]} {[%emt 00:02:00]} g4 {[%clk 00:50:53]} {[%emt 00:04:16]} 20.
Qb3 {[%clk 00:39:00]} {[%emt 00:03:33]} Qe7 {[%clk 00:44:14]} {[%emt 00:07:09]}
21. Rac1 {[%clk 00:33:41]} {[%emt 00:05:50]} Rad8 {[%clk 00:40:15]} {[%emt
00:04:28]} 22. Ba5 {[%clk 00:31:22]} {[%emt 00:02:49]} Rd7 {[%clk 00:37:58]}
{[%emt 00:02:47]} 23. Rfd1 {[%emt 00:04:21]} c6 {[%clk 00:33:47]} {[%emt
00:04:32]} 24. Bb6 {[%clk 00:23:37]} {[%emt 00:04:32]} Qf6 {[%clk 00:32:51]}
{[%emt 00:01:26]} 25. Bc5 {[%clk 00:21:51]} {[%emt 00:02:17]} Bc7 {[%clk
00:31:25]} {[%emt 00:01:56]} 26. Qc2 {[%clk 00:17:45]} {[%emt 00:04:36]} Qg6
{[%clk 00:30:53]} {[%emt 00:01:02]} 27. Bf1 {[%clk 00:16:30]} {[%emt 00:01:45]}
Rd5 {[%clk 00:30:19]} {[%emt 00:01:04]} 28. a4 {[%clk 00:16:17]} {[%emt
00:00:44]} Rf5 {[%emt 00:01:52]} 29. axb5 {[%clk 00:15:22]} {[%emt 00:01:22]}
axb5 {[%clk 00:29:00]} {[%emt 00:00:28]} 30. d5 {[%clk 00:09:18]} {[%emt
00:06:35]} Ree5 {[%clk 00:24:24]} {[%emt 00:05:06]} 31. dxc6 {[%clk 00:03:31]}
{[%emt 00:06:18]} Bxc6 {[%clk 00:17:43]} {[%emt 00:07:11]} 32. Bd4 {[%clk
00:03:12]} {[%emt 00:00:49]} Re6 {[%clk 00:18:07]} {[%emt 00:00:06]} 33. Bg2
{[%clk 00:02:32]} {[%emt 00:01:10]} Rf3 {[%clk 00:13:54]} {[%emt 00:04:42]} 34.
Qc5 {[%clk 00:01:43]} {[%emt 00:01:20]} Rf5 {[%clk 00:13:06]} {[%emt 00:01:17]}
35. Qa7 {[%clk 00:01:32]} {[%emt 00:00:42]} Re7 {[%clk 00:11:41]} {[%emt
00:01:55]} 36. Bc3 {[%clk 00:00:46]} {[%emt 00:01:16]} Kh7 {[%clk 00:09:58]}
{[%emt 00:02:12]} 37. Qd4 {[%emt 00:00:40]} Be5 {[%clk 00:09:33]} {[%emt
00:00:54]} 38. Qd8 {[%clk 00:00:46]} {[%emt 00:00:21]} Re8 {[%clk 00:10:02]}
{[%emt 00:00:02]} 39. Qd2 {[%clk 00:01:13]} {[%emt 00:00:04]} Bc7 {[%clk
00:08:46]} {[%emt 00:01:46]} 40. Bd4 {[%clk 00:01:17]} {[%emt 00:00:25]} Bb8
{[%clk 00:03:36]} {[%emt 00:05:40]} 41. Rc5 {[%clk 00:27:41]} {[%emt 00:04:07]}
Rxc5 {[%clk 00:28:50]} {[%emt 00:05:15]} 42. Bxc5 {[%clk 00:28:08]} {[%emt
00:00:03]} Be5 {[%clk 00:28:52]} {[%emt 00:00:28]} 43. Bd4 {[%clk 00:21:50]}
{[%emt 00:06:48]} Bxd4 {[%clk 00:26:50]} {[%emt 00:02:32]} 44. Qxd4 {[%clk
00:22:10]} {[%emt 00:00:09]} Qe6 {[%clk 00:25:53]} {[%emt 00:01:28]} 45. Qc5
{[%clk 00:21:41]} {[%emt 00:00:59]} Qg6 {[%clk 00:19:57]} {[%emt 00:06:26]} 46.
Rd6 {[%clk 00:21:35]} {[%emt 00:00:37]} Re6 {[%clk 00:20:19]} {[%emt 00:00:08]}
47. Rxe6 {[%clk 00:21:12]} {[%emt 00:00:53]} Qxe6 {[%clk 00:20:46]} {[%emt
00:00:03]} 48. Qxh5+ {[%clk 00:20:46]} {[%emt 00:00:56]} Kg7 {[%clk 00:21:09]}
{[%emt 00:00:08]} 49. Qg5+ {[%clk 00:20:55]} {[%emt 00:00:20]} Qg6 {[%clk
00:18:30]} {[%emt 00:03:09]} 50. Qc5 {[%clk 00:19:39]} {[%emt 00:01:46]} f5
{[%clk 00:17:49]} {[%emt 00:01:11]} 51. Bf1 {[%clk 00:19:47]} {[%emt 00:00:21]}
Qe6 {[%clk 00:15:31]} {[%emt 00:02:49]} 52. Bxb5 {[%clk 00:19:05]} {[%emt
00:01:12]} Bxb5 {[%clk 00:16:00]} 53. Qxb5 {[%clk 00:19:34]} {[%emt 00:00:01]}
Kg6 {[%clk 00:16:02]} 54. b4 {[%clk 00:18:35]} {[%emt 00:01:57]} Qb3 {[%clk
00:16:00]} {[%emt 00:00:31]} 55. Qc6+ {[%clk 00:17:02]} {[%emt 00:02:03]} Kg7
{[%clk 00:15:09]} {[%emt 00:01:21]} 56. Qd7+ {[%clk 00:17:07]} {[%emt
00:00:24]} Kf6 {[%clk 00:14:21]} {[%emt 00:01:20]} 57. Qd6+ {[%clk 00:17:15]}
{[%emt 00:00:21]} Kf7 {[%clk 00:14:25]} {[%emt 00:00:26]} 58. h5 {[%clk
00:17:19]} {[%emt 00:00:26]} Qb1+ {[%clk 00:13:09]} {[%emt 00:01:47]} 59. Kg2
{[%clk 00:17:39]} {[%emt 00:00:10]} Qe1 {[%clk 00:12:37]} {[%emt 00:01:01]} 60.
Qg6+ {[%clk 00:17:23]} {[%emt 00:00:45]} Ke7 {[%clk 00:13:05]} {[%emt
00:00:03]} 61. b5 {[%clk 00:17:30]} {[%emt 00:00:24]} Qd1 {[%clk 00:12:53]}
{[%emt 00:00:41]} 62. Qxf5 {[%clk 00:17:44]} {[%emt 00:00:16]} Kd6 {[%clk
00:13:01]} {[%emt 00:00:22]} 63. h6 {[%clk 00:17:39]} {[%emt 00:00:35]} Qa1
{[%clk 00:13:04]} {[%emt 00:00:27]} 64. Qxe4 {[%clk 00:17:23]} {[%emt
00:00:46]} Kc7 {[%clk 00:13:22]} {[%emt 00:00:13]} 65. Qd4 {[%clk 00:16:45]}
{[%emt 00:01:07]} Qa8+ {[%clk 00:13:26]} {[%emt 00:00:26]} 66. Kh2 {[%clk
00:17:07]} {[%emt 00:00:07]} Qa2 {[%clk 00:12:53]} {[%emt 00:01:04]} 67. e4
{[%clk 00:17:17]} {[%emt 00:00:20]} Qe6 {[%clk 00:12:43]} {[%emt 00:00:40]} 68.
h7 {[%clk 00:16:36]} {[%emt 00:01:11]} Qh6+ {[%clk 00:12:59]} {[%emt 00:00:14]}
69. Kg1 {[%clk 00:16:58]} {[%emt 00:00:08]} Qxh7 {[%clk 00:12:51]} {[%emt
00:00:39]} 70. Qa7+ {[%clk 00:17:20]} {[%emt 00:00:07]} 1-0

[Event "NJSK 2024 B"]
[Site "Groningen, Netherlands"]
[Date "2024.04.29"]
[Round "3.1"]
[White "Kazarjan, Gachatur"]
[Black "Arnold, Rhys"]
[Result "0-1"]
[TimeControl "90min/40moves + 30min + 30sec/move"]
[WhiteElo "2203"]
[BlackElo "2185"]

1. e4 {[%clk 01:30:58]} {[%emt 00:00:02]} c5 {[%clk 01:30:23]} {[%emt
00:00:38]} 2. a3 {[%clk 01:30:01]} {[%emt 00:01:27]} Nc6 {[%clk 01:26:14]}
{[%emt 00:04:39]} 3. b4 {[%clk 01:30:15]} {[%emt 00:00:16]} cxb4 {[%clk
01:24:22]} {[%emt 00:02:22]} 4. axb4 {[%clk 01:30:40]} {[%emt 00:00:06]} Nxb4
{[%clk 01:23:59]} {[%emt 00:00:53]} 5. c3 {[%clk 01:30:51]} {[%emt 00:00:19]}
Nc6 {[%clk 01:24:22]} {[%emt 00:00:07]} 6. d4 {[%clk 01:31:16]} {[%emt
00:00:05]} d5 {[%clk 01:23:15]} {[%emt 00:01:37]} 7. exd5 {[%clk 01:29:30]}
{[%emt 00:02:16]} Qxd5 {[%clk 01:23:33]} {[%emt 00:00:12]} 8. Na3 {[%clk
01:27:35]} {[%emt 00:02:25]} Bd7 {[%clk 01:07:27]} {[%emt 00:16:37]} 9. Nf3
{[%clk 01:26:53]} {[%emt 00:01:11]} e5 {[%clk 01:02:20]} {[%emt 00:05:36]} 10.
Bc4 {[%clk 01:15:06]} {[%emt 00:12:17]} Qe4+ {[%clk 01:02:03]} {[%emt
00:00:48]} 11. Be3 {[%clk 01:13:43]} {[%emt 00:01:53]} exd4 {[%clk 00:53:07]}
{[%emt 00:09:26]} 12. Bxf7+ {[%clk 01:10:51]} {[%emt 00:03:22]} Kd8 {[%clk
00:53:11]} {[%emt 00:00:26]} 13. cxd4 {[%clk 01:05:22]} {[%emt 00:06:00]} Nh6
{[%clk 00:45:14]} {[%emt 00:08:28]} 14. Bc4 {[%clk 01:04:16]} {[%emt 00:01:36]}
Ng4 {[%clk 00:43:57]} {[%emt 00:01:47]} 15. Qe2 {[%clk 00:50:11]} {[%emt
00:14:35]} Bb4+ {[%clk 00:42:07]} {[%emt 00:02:19]} 16. Kf1 {[%clk 00:50:18]}
{[%emt 00:00:23]} Nxe3+ {[%clk 00:42:34]} {[%emt 00:00:04]} 17. fxe3 {[%clk
00:49:22]} {[%emt 00:01:26]} Bxa3 {[%clk 00:31:57]} {[%emt 00:11:06]} 18. Rxa3
{[%clk 00:49:19]} {[%emt 00:00:34]} Rf8 {[%clk 00:31:50]} {[%emt 00:00:37]} 19.
Qd3 {[%clk 00:38:53]} {[%emt 00:10:56]} Rxf3+ {[%clk 00:18:35]} {[%emt
00:13:45]} 20. gxf3 {[%clk 00:38:58]} {[%emt 00:00:24]} Qxf3+ {[%clk 00:19:03]}
{[%emt 00:00:02]} 21. Kg1 {[%clk 00:39:16]} {[%emt 00:00:12]} Qg4+ {[%clk
00:16:31]} {[%emt 00:03:01]} 22. Kf2 {[%clk 00:37:56]} {[%emt 00:01:51]} Bf5
{[%clk 00:16:17]} {[%emt 00:00:44]} 23. Qe2 {[%clk 00:33:48]} {[%emt 00:04:38]}
Qh4+ {[%clk 00:16:18]} {[%emt 00:00:29]} 24. Kg1 {[%clk 00:33:07]} {[%emt
00:01:11]} Be4 {[%clk 00:16:43]} {[%emt 00:00:05]} 25. Be6 {[%clk 00:29:22]}
{[%emt 00:04:15]} Bxh1 {[%clk 00:15:11]} {[%emt 00:02:02]} 26. Kxh1 {[%clk
00:29:40]} {[%emt 00:00:12]} Qe4+ {[%clk 00:15:02]} {[%emt 00:00:39]} 27. Qg2
{[%clk 00:30:06]} {[%emt 00:00:04]} Qb1+ {[%clk 00:14:57]} {[%emt 00:00:35]} 28.
Qg1 {[%clk 00:30:28]} {[%emt 00:00:08]} Qe4+ {[%clk 00:15:25]} {[%emt
00:00:02]} 29. Qg2 {[%clk 00:30:53]} {[%emt 00:00:05]} Qxe6 {[%clk 00:15:54]}
30. d5 {[%clk 00:31:12]} {[%emt 00:00:11]} Qd6 {[%clk 00:14:47]} {[%emt
00:01:37]} 31. Qg5+ {[%clk 00:30:58]} {[%emt 00:00:44]} Ne7 {[%clk 00:14:52]}
{[%emt 00:00:26]} 32. Rd3 {[%clk 00:31:14]} {[%emt 00:00:13]} Rc8 {[%clk
00:14:44]} {[%emt 00:00:38]} 33. e4 {[%clk 00:30:45]} {[%emt 00:01:00]} Qf6
{[%clk 00:14:11]} {[%emt 00:01:04]} 0-1

[Event "NJSK 2024 B"]
[Site "Groningen, Netherlands"]
[Date "2024.04.29"]
[Round "3.2"]
[White "Smeets, Kobe"]
[Black "Zhu, Chenwu"]
[Result "1-0"]
[TimeControl "90min/40moves + 30min + 30sec/move"]
[WhiteElo "2274"]
[BlackElo "2020"]

1. e4 {[%clk 01:30:58]} {[%emt 00:00:02]} c5 {[%clk 01:30:55]} {[%emt
00:00:05]} 2. Nf3 {[%clk 01:31:23]} {[%emt 00:00:05]} d6 {[%clk 01:31:18]}
{[%emt 00:00:08]} 3. Bb5+ {[%clk 01:31:48]} {[%emt 00:00:04]} Bd7 {[%clk
01:31:37]} {[%emt 00:00:11]} 4. Bxd7+ {[%clk 01:32:10]} {[%emt 00:00:08]} Qxd7
{[%clk 01:32:03]} {[%emt 00:00:05]} 5. c4 {[%clk 01:32:34]} {[%emt 00:00:06]}
Nf6 {[%clk 01:32:25]} {[%emt 00:00:08]} 6. Nc3 {[%clk 01:32:59]} {[%emt
00:00:05]} Nc6 {[%clk 01:32:35]} {[%emt 00:00:20]} 7. d4 {[%clk 01:33:21]}
{[%emt 00:00:08]} cxd4 {[%clk 01:32:59]} {[%emt 00:00:05]} 8. Nxd4 {[%clk
01:33:47]} {[%emt 00:00:04]} g6 {[%clk 01:32:29]} {[%emt 00:01:01]} 9. f3
{[%clk 01:34:12]} {[%emt 00:00:05]} Nxd4 {[%clk 01:32:36]} {[%emt 00:00:23]} 10.
Qxd4 {[%clk 01:34:33]} {[%emt 00:00:08]} Bg7 {[%clk 01:32:49]} {[%emt
00:00:17]} 11. Be3 {[%clk 01:32:36]} {[%emt 00:02:27]} O-O {[%clk 01:32:58]}
{[%emt 00:00:20]} 12. Qd3 {[%clk 01:31:10]} {[%emt 00:01:55]} Rfc8 {[%clk
01:27:51]} {[%emt 00:05:38]} 13. O-O {[%clk 01:30:19]} {[%emt 00:01:20]} Qc7
{[%clk 01:25:45]} {[%emt 00:02:37]} 14. b3 {[%clk 01:29:55]} {[%emt 00:00:54]}
a6 {[%clk 01:19:55]} {[%emt 00:06:21]} 15. Rac1 {[%clk 01:28:02]} {[%emt
00:02:21]} Qa5 {[%clk 01:16:42]} {[%emt 00:03:44]} 16. a4 {[%clk 01:21:36]}
{[%emt 00:06:56]} Qb4 {[%clk 01:02:40]} {[%emt 00:14:32]} 17. Rb1 {[%clk
01:07:03]} {[%emt 00:15:02]} Kf8 {[%clk 00:53:07]} {[%emt 00:10:03]} 18. Rfd1
{[%clk 01:04:11]} {[%emt 00:03:21]} Re8 {[%clk 00:48:16]} {[%emt 00:05:21]} 19.
Kh1 {[%clk 00:52:24]} {[%emt 00:12:17]} Rac8 {[%clk 00:47:10]} {[%emt
00:01:37]} 20. Bd4 {[%clk 00:42:50]} {[%emt 00:10:03]} Red8 {[%clk 00:32:03]}
{[%emt 00:15:37]} 21. Bxf6 {[%clk 00:31:48]} {[%emt 00:11:31]} Bxf6 {[%clk
00:31:51]} {[%emt 00:00:42]} 22. Nd5 {[%clk 00:32:11]} {[%emt 00:00:07]} Qc5
{[%clk 00:31:38]} {[%emt 00:00:43]} 23. Nxf6 {[%clk 00:32:26]} {[%emt
00:00:15]} exf6 {[%clk 00:32:04]} {[%emt 00:00:04]} 24. Qc3 {[%clk 00:32:39]}
{[%emt 00:00:16]} Qe5 {[%clk 00:30:51]} {[%emt 00:01:44]} 25. Qb4 {[%clk
00:32:47]} {[%emt 00:00:22]} Qe7 {[%clk 00:29:58]} {[%emt 00:01:23]} 26. Rd5
{[%clk 00:29:46]} {[%emt 00:03:32]} Rc5 {[%clk 00:29:08]} {[%emt 00:01:21]} 27.
Rbd1 {[%clk 00:29:55]} {[%emt 00:00:21]} Rxd5 {[%clk 00:26:15]} {[%emt
00:03:24]} 28. Rxd5 {[%clk 00:30:12]} {[%emt 00:00:12]} Ke8 {[%clk 00:24:51]}
{[%emt 00:01:54]} 29. h3 {[%clk 00:28:53]} {[%emt 00:01:48]} h5 {[%clk
00:24:38]} {[%emt 00:00:44]} 30. a5 {[%clk 00:27:10]} {[%emt 00:02:14]} Qc7
{[%clk 00:22:50]} {[%emt 00:02:17]} 31. Qd2 {[%clk 00:25:51]} {[%emt 00:01:49]}
b6 {[%clk 00:19:52]} {[%emt 00:03:29]} 32. Qd4 {[%clk 00:16:08]} {[%emt
00:10:12]} bxa5 {[%clk 00:08:33]} {[%emt 00:11:49]} 33. Qxf6 {[%clk 00:16:30]}
{[%emt 00:00:07]} Qe7 {[%clk 00:07:05]} {[%emt 00:01:58]} 34. Qd4 {[%clk
00:14:03]} {[%emt 00:02:57]} a4 {[%clk 00:05:01]} {[%emt 00:02:34]} 35. c5
{[%clk 00:09:39]} {[%emt 00:04:54]} axb3 {[%clk 00:04:10]} {[%emt 00:01:21]} 36.
cxd6 {[%clk 00:09:58]} {[%emt 00:00:11]} Qh4 {[%clk 00:01:46]} {[%emt
00:02:54]} 37. Re5+ {[%clk 00:01:17]} {[%emt 00:09:11]} Kf8 {[%clk 00:02:13]}
{[%emt 00:00:03]} 38. d7 {[%clk 00:00:58]} {[%emt 00:00:49]} Qe1+ {[%clk
00:02:29]} {[%emt 00:00:13]} 39. Kh2 {[%clk 00:01:27]} {[%emt 00:00:01]} Rxd7
{[%clk 00:01:40]} {[%emt 00:01:20]} 40. Qxd7 {[%clk 00:01:55]} {[%emt
00:00:01]} h4 {[%clk 00:01:26]} {[%emt 00:00:45]} 41. Re8+ {[%clk 00:00:33]}
{[%emt 00:01:52]} Kg7 {[%clk 00:01:51]} {[%emt 00:00:05]} 42. Qd4+ {[%clk
00:00:52]} {[%emt 00:00:10]} Kh6 {[%clk 00:29:33]} {[%emt 00:02:49]} 43. Rh8+
{[%clk 00:31:16]} {[%emt 00:00:05]} Kg5 {[%clk 00:30:00]} {[%emt 00:00:03]} 44.
Qe5+ {[%clk 00:31:41]} {[%emt 00:00:05]} f5 {[%clk 00:30:27]} {[%emt 00:00:03]}
45. f4# {[%clk 00:32:07]} {[%emt 00:00:04]} 1-0